fUSD/lending_fUSD_20260103
["ID","MTS","AMOUNT","RATE_DAILY","PERIOD"]
[400368159,1767447031798,-300.0,0.00020899,2]
[400368160,1767447031808,-140.3639732,0.000209,30]
[400368161,1767447031846,-17388.52792394,0.000209,30]
[400368162,1767447031859,-306.0,0.000209,30]
[400368163,1767447031872,-753.94627524,0.000209,30]
[400368164,1767447031883,-1337.70986208,0.000209,30]
[400368165,1767447031895,-1257.02204758,0.000209,30]
[400368169,1767447032102,-298.1025574,0.000209,30]
[400368171,1767447032114,-398.97710426,0.000209,30]
[400368172,1767447032125,-500.0,0.000209,30]
[400368188,1767447037880,-1072.40294018,0.000209,30]
[400368189,1767447038048,-396.4497,0.000209,30]
[400368383,1767447040139,-573.63214,0.000209,30]
[400368390,1767447040197,-5200.68821485,0.000209,30]
[400368392,1767447040209,-1269.9727187,0.000209,30]
[400368399,1767447040309,-348.03228345,0.000209,30]
[400368400,1767447040323,-5606.6598824,0.000209,30]
[400368401,1767447040335,-1718.44863131,0.000209,30]
[400368402,1767447040347,-30864.37590098,0.000209,30]
[400368403,1767447040359,-9634.80969665,0.000209,30]
[400368762,1767447044652,-4702.757703,0.000209,30]
[400368763,1767447044664,-531.774,0.000209,30]
[400368764,1767447044773,-160655.80938252,0.000209,30]
[400368765,1767447044783,-181.66986251,0.000218,2]
[400368766,1767447044792,-5996.80717867,0.000219,2]
[400368767,1767447044802,-3548.40485112,0.00022,30]
[400368768,1767447044812,-420.0,0.00022736,2]
[400368769,1767447044822,-151.0,0.00023111,2]
[400368770,1767447044832,-158.28,0.00023377,2]
[400368771,1767447044842,-5996.80717866,0.00024244,2]
[400368772,1767447044852,-300.0,0.00024734,2]
[400368773,1767447044861,-5996.80717866,0.00026589,2]
[400368774,1767447044872,-158.28,0.00026717,2]
[400368775,1767447044882,-1540.55277502,0.00028,60]
[400368776,1767447044892,-5996.80717866,0.00028933,2]
[400368777,1767447044902,-506.0,0.00029877,2]
[400368778,1767447044912,-227.06327235,0.000299,2]
[400368779,1767447044922,-158.28,0.00030056,2]
[400368780,1767447044931,-1427.76,0.00031074,2]
[400368781,1767447044942,-5996.80717866,0.00031278,2]
[400368782,1767447044951,-2628.45,0.00032035,2]
[400368783,1767447044961,-152.13369376,0.00032386,2]
[400368784,1767447044971,-4697.69,0.00032767,2]
[400368785,1767447044981,-166.66,0.0003307,30]
[400368786,1767447044992,-158.28,0.00033396,2]
[400368787,1767447045002,-22097.16,0.00033429,2]
[400368788,1767447045011,-1122.84249346,0.00033522,2]
[400368789,1767447045021,-5996.80717866,0.00033622,2]
[400368791,1767447045032,-11888.05163922,0.00033666,2]
[400368792,1767447045042,-166.66,0.00033767,30]
[400368793,1767447045051,-1045.791,0.00033899,37]
[400368794,1767447045062,-158.084,0.00033899,37]
[400368795,1767447045072,-432.0,0.00033928,2]
[400368796,1767447045082,-1265.0,0.00033928,2]
[400368797,1767447045092,-2433.0,0.00033928,2]
[400368798,1767447045102,-3463.0,0.00033928,2]
[400368799,1767447045114,-2599.411,0.00033928,2]
[400368800,1767447045124,-1328.0,0.00033928,2]
[400368801,1767447045135,-209.09,0.00033928,14]
[400368802,1767447045144,-178.24471296,0.00033962,2]
[400368803,1767447045154,-300.0,0.00033999,10]
[400368804,1767447045164,-214.93513976,0.00033999,10]
[400368805,1767447045174,-1750.98227214,0.00034,120]
[400368806,1767447045185,-990.15,0.00034062,2]
[400368807,1767447045195,-352.35417295,0.00034099,120]
[400368808,1767447045204,-209.09,0.00034202,14]
[400368809,1767447045214,-214.0,0.00034394,2]
[400368810,1767447045224,-166.84,0.00034411,2]
[400368811,1767447045234,-166.66,0.00034463,30]
[400368812,1767447045244,-209.09,0.00034476,14]
[400368813,1767447045254,-209.09,0.0003475,14]
[400368814,1767447045264,-1122.8424934,0.00034876,2]
[400368815,1767447045274,-506.0,0.00034889,7]
[400368816,1767447045283,-150.0,0.00035,30]
[400368817,1767447045293,-209.12042975,0.00035024,14]
[400368818,1767447045303,-166.66,0.00035159,30]
[400368819,1767447045313,-7287.73698896,0.00035455,30]
[400368820,1767447045326,-435.46301104,0.00035455,30]
[400368821,1767447045336,-636.38,0.00035511,2]
[400368822,1767447045345,-500.0,0.00035636,2]
[400368823,1767447045355,-166.66,0.00035855,30]
[400368824,1767447045366,-5996.80717866,0.00035967,2]
[400368825,1767447045376,-3078.89670965,0.0003597,2]
[400368826,1767447045385,-2000.0,0.00036164,120]
[400368827,1767447045395,-1122.8424934,0.0003623,2]
[400368828,1767447045405,-1784.34,0.00036261,30]
[400368829,1767447045416,-1464.12,0.00036261,2]
[400368830,1767447045426,-466.14,0.00036261,10]
[400368831,1767447045436,-999.99,0.00036261,2]
[400368832,1767447045446,-3187.22,0.00036261,2]
[400368833,1767447045456,-150.99,0.00036261,30]
[400368834,1767447045467,-166.66,0.00036552,30]
[400368835,1767447045477,-828.49276749,0.00036712,120]
[400368836,1767447045490,-1171.50723251,0.00036712,120]
[400368837,1767447045500,-178.24471294,0.00036975,2]
[400368838,1767447045510,-3078.89670965,0.00036975,2]
[400368839,1767447045520,-3750.0,0.00037066,5]
[400368840,1767447045530,-2000.0,0.0003726,120]
[400368841,1767447045539,-1122.8424934,0.00037584,2]
[400368842,1767447045549,-2000.0,0.00037808,120]
[400368843,1767447045559,-3078.89670965,0.00037979,2]
[400368844,1767447045572,-151.0,0.0003825,7]
[400368845,1767447045582,-151.0,0.0003825,7]
[400368846,1767447045591,-151.0,0.0003825,7]
[400368847,1767447045603,-151.0,0.0003825,7]
[400368848,1767447045613,-151.0,0.0003825,7]
[400368849,1767447045623,-151.0,0.0003825,7]
[400368850,1767447045635,-151.0,0.0003825,7]
[400368851,1767447045645,-151.0,0.0003825,7]
[400368853,1767447045655,-151.0,0.0003825,7]
[400368854,1767447045665,-151.0,0.0003825,7]
[400368855,1767447045676,-151.0,0.0003825,7]
[400368856,1767447045685,-151.0,0.0003825,7]
[400368857,1767447045695,-151.0,0.0003825,7]
[400368858,1767447045705,-254.59454482,0.0003825,7]
[400368859,1767447045715,-5996.80717866,0.00038311,2]
[400368860,1767447045725,-2000.0,0.00038356,120]
[400368861,1767447045736,-253.241905,0.00038356,120]
[400368862,1767447045746,-300.0,0.00038812,2]
[400368863,1767447045756,-300.0,0.00038812,2]
[400368864,1767447045765,-300.0,0.00038812,2]
[400368865,1767447045775,-500.0,0.00038845,2]
[400368866,1767447045785,-2000.0,0.00038904,120]
[400368867,1767447045796,-1000.0,0.00038904,120]
[400368868,1767447045806,-1122.8424934,0.00038938,2]
[400368869,1767447045816,-3078.89670965,0.00038983,2]
[400368871,1767447045826,-1000.0,0.00039178,120]
[400368873,1767447045836,-2000.0,0.00039452,120]
[400368875,1767447045845,-1000.0,0.00039452,120]
[400368877,1767447045855,-1000.0,0.00039726,120]
[400368879,1767447045865,-168.0,0.00039784,7]
[400368904,1767447046032,-168.0,0.00039829,2]
[400368905,1767447046086,-506.0,0.00039901,13]
[400368906,1767447046096,-2199.63,0.00039975,2]
[400368907,1767447046107,-178.24471294,0.00039987,2]
[400368908,1767447046117,-3078.89670965,0.00039987,15]
[400368909,1767447046127,-2000.0,0.0004,120]
[400368910,1767447046137,-1000.0,0.0004,120]
[400368911,1767447046147,-2299.99999801,0.0004,2]
[400368912,1767447046157,-268.22,0.00040174,30]
[400368913,1767447046168,-1015.23146062,0.00040255,7]
[400368914,1767447046178,-1000.0,0.00040274,120]
[400368915,1767447046187,-1122.8424934,0.00040292,28]
[400368916,1767447046197,-500.0,0.000405,30]
[400368917,1767447046207,-505.84624591,0.000405,30]
[400368918,1767447046218,-500.0,0.000405,30]
[400368919,1767447046229,-168.0,0.00040516,2]
[400368920,1767447046239,-2000.0,0.00040548,120]
[400368921,1767447046249,-1000.0,0.00040548,120]
[400368922,1767447046259,-168.0,0.00040583,2]
[400368923,1767447046268,-168.0,0.00040642,2]
[400368924,1767447046278,-5996.80717866,0.00040656,15]
[400368925,1767447046287,-1000.0,0.00040822,120]
[400368926,1767447046297,-168.0,0.00040844,2]
[400368927,1767447046307,-300.0,0.00040981,10]
[400368928,1767447046317,-15976.8979937,0.00040982,2]
[400368929,1767447046327,-3040.0222686,0.00040982,2]
[400368930,1767447046336,-3479.9758016,0.00040982,2]
[400368931,1767447046346,-3078.89670965,0.00040992,15]
[400368932,1767447046356,-168.0,0.00041078,2]
[400368933,1767447046367,-999.0,0.00041095,120]
[400368934,1767447046376,-600.0,0.00041096,120]
[400368935,1767447046386,-269.28963765,0.00041096,2]
[400368936,1767447046395,-2000.0,0.00041096,120]
[400368937,1767447046405,-1000.0,0.00041096,120]
[400368938,1767447046415,-698.25,0.00041119,30]
[400368939,1767447046425,-979.41,0.00041205,30]
[400368940,1767447046435,-600.0,0.00041235,60]
[400368941,1767447046444,-500.0,0.00041235,60]
[400368942,1767447046454,-260.08239546,0.00041269,2]
[400368943,1767447046463,-300.0,0.00041276,2]
[400368944,1767447046473,-300.0,0.00041278,2]
[400368945,1767447046483,-300.0,0.0004128,2]
[400368946,1767447046493,-168.0,0.00041288,2]
[400368947,1767447046503,-300.0,0.00041291,2]
[400368948,1767447046513,-300.0,0.00041298,2]
[400368949,1767447046523,-300.0,0.00041299,30]
[400368950,1767447046532,-9936.48806965,0.000413,2]
[400368951,1767447046552,-3087.29203035,0.000413,2]
[400368952,1767447046565,-1000.0,0.000413,2]
[400368953,1767447046575,-300.0,0.00041314,2]
[400368954,1767447046585,-300.0,0.00041363,2]
[400368955,1767447046595,-300.0,0.00041367,2]
[400368956,1767447046606,-300.0,0.00041377,2]
[400368957,1767447046616,-300.0,0.00041379,2]
[400368958,1767447046626,-300.0,0.00041388,2]
[400368959,1767447046636,-500.0,0.00041399,28]
[400368960,1767447046645,-500.0,0.00041399,28]
[400368961,1767447046655,-500.0,0.00041399,28]
[400368962,1767447046664,-500.0,0.00041399,28]
[400368963,1767447046675,-161.68112424,0.00041399,28]
[400368964,1767447046684,-500.0,0.00041399,28]
[400368965,1767447046694,-500.0,0.00041399,28]
[400368966,1767447046704,-500.0,0.00041399,28]
[400368967,1767447046714,-386.3255641,0.000414,120]
[400368968,1767447046723,-300.0,0.00041442,2]
[400368969,1767447046733,-300.0,0.00041442,2]
[400368970,1767447046742,-300.0,0.0004147,2]
[400368971,1767447046752,-300.0,0.00041472,2]
[400368972,1767447046761,-300.0,0.00041481,2]
[400368973,1767447046771,-191.50566725,0.0004149,120]
[400368974,1767447046783,-1031.44433275,0.0004149,120]
[400368975,1767447046793,-1222.95,0.0004149,120]
[400368976,1767447046803,-1222.95,0.0004149,120]
[400368977,1767447046812,-1222.95,0.0004149,120]
[400368978,1767447046822,-1222.95,0.0004149,120]
[400368979,1767447046832,-770.31,0.0004149,120]
[400368980,1767447046841,-171.21475893,0.00041499,30]
[400368981,1767447046853,-128.78524107,0.00041499,30]
[400368982,1767447046864,-5432.97611233,0.000415,2]
[400368983,1767447046876,-2156.34506231,0.000415,2]
[400368984,1767447046888,-1000.0,0.000415,2]
[400368985,1767447046899,-22220.93962766,0.000415,2]
[400368986,1767447046910,-400.0,0.000415,2]
[400368987,1767447046922,-553.29706463,0.000415,2]
[400368988,1767447046933,-1159.3,0.000415,2]
[400368989,1767447046944,-3000.0,0.000415,2]
[400368990,1767447123566,600.0,0.00028314,120]
[400369176,1767447938344,-151.0,0.00025778,2]
[400369177,1767447938367,-399.0,0.00026192,2]
[400369178,1767447938389,-3309.4379,0.00026192,2]
[400369179,1767447938411,-151.0,0.00026294,2]
[400369180,1767447938432,-151.0,0.00026294,2]
[400369181,1767447938452,-151.0,0.00026294,2]
[400369182,1767447938474,-506.0,0.00029877,2]
[400369183,1767447938496,-300.0,0.00030999,2]
[400369184,1767447938516,-549.52186618,0.00031,2]
[400369185,1767447942108,-750.47813382,0.00031,2]
[400369186,1767447942129,-1300.0,0.00032,3]
[400369187,1767447942149,-152.13369377,0.00032357,2]
[400369188,1767447942170,-1452.0,0.00033,4]
[400369189,1767447942191,-1265.0,0.00034417,2]
[400369190,1767447942212,-1328.0,0.00034417,2]
[400369191,1767447942233,-3458.0,0.00034417,2]
[400369192,1767447942255,-565.0,0.00034417,2]
[400369193,1767447942276,-1404.0,0.00034417,2]
[400369194,1767447942297,-150.0,0.000345,30]
[400369195,1767447942317,-506.0,0.00037037,10]
[400369196,1767447942339,-150.0,0.00038499,4]
[400369197,1767447942360,-13685.0,0.000385,60]
[400369198,1767447942380,-836.633,0.000385,51]
[400369199,1767447942401,-500.0,0.00038515,20]
[400369200,1767447942421,-634.94,0.00038678,2]
[400369201,1767447942440,-300.0,0.00038814,2]
[400369202,1767447942460,-300.0,0.00038814,2]
[400369203,1767447942480,-225.19,0.00039628,2]
[400369204,1767447942500,-5000.0,0.00039733,120]
[400369205,1767447942520,-200.0,0.00040089,2]
[400369206,1767447942540,-914.96960006,0.00040255,7]
[400369207,1767447942560,-999.0,0.00040287,3]
[400369208,1767447942580,-698.11,0.00040361,30]
[400369209,1767447942601,-1277.6,0.00040604,6]
[400369210,1767447942620,-3240.0,0.00040633,120]
[400369211,1767447942640,-207.0,0.0004089,2]
[400369212,1767447942660,-4105.521,0.00040896,2]
[400369213,1767447942680,-10677.32735318,0.00040896,2]
[400369218,1767448031090,-151.0,0.00029464,2]
[400369219,1767448031113,-151.0,0.00029464,2]
[400369220,1767448031136,-151.0,0.00029467,2]
[400369221,1767448031160,-151.0,0.00029467,2]
[400369222,1767448031181,-151.0,0.00029521,2]
[400369223,1767448031207,-151.0,0.0002957,2]
[400369224,1767448031229,-151.0,0.00029651,2]
[400369225,1767448031253,-151.0,0.00030043,2]
[400369226,1767448031277,-198.57,0.00030043,2]
[400369227,1767448031298,-151.0,0.00030043,2]
[400369228,1767448031321,-250.0,0.00030181,2]
[400369229,1767448031342,-1199.0,0.00034417,2]
[400369230,1767448031364,-913.0,0.00034417,2]
[400369231,1767448031386,-432.0,0.00034417,2]
[400369232,1767448031410,-1402.0,0.00037417,2]
[400369233,1767448031432,-209.0,0.00038356,2]
[400369234,1767448031459,-457.48480003,0.00040255,7]
[400369235,1767448031482,-13618.96239731,0.00040896,2]
[400369236,1767448032098,-8585.94124951,0.00040896,2]
[400369237,1767448032120,-2500.0,0.00040906,2]
[400369238,1767448032142,-599.68071792,0.00040906,15]
[400369239,1767448032163,-1292.84547079,0.00040906,15]
[400369240,1767448032188,-511.565606,0.00040906,28]
[400369241,1767448032212,-178.24471294,0.0004094,2]
[400369242,1767448032234,-218.5036679,0.00040988,2]
[400369243,1767448032258,-500.0,0.00040995,15]
[400369244,1767448032286,-500.0,0.00040995,31]
[400369245,1767448032310,-500.0,0.00040995,15]
[400369246,1767448032331,-500.0,0.00040995,15]
[400369247,1767448032356,-248.46203431,0.00040995,31]
[400369248,1767448032379,-500.0,0.00040995,15]
[400369249,1767448032406,-500.0,0.00040995,31]
[400369250,1767448032428,-500.0,0.00040995,15]
[400369251,1767448032450,-500.0,0.00040995,15]
[400369252,1767448032477,-425.05875893,0.00040995,31]
[400369253,1767448032500,-569.23978455,0.00040995,15]
[400369254,1767448032525,-500.0,0.00040995,15]
[400369255,1767448032547,-500.0,0.00040995,15]
[400369256,1767448032569,-500.0,0.00040995,15]
[400369257,1767448032593,-500.0,0.00040995,15]
[400369258,1767448032614,-704.72,0.00040995,30]
[400369259,1767448032635,-693.9,0.00040995,30]
[400369260,1767448032657,-700.49,0.00040995,30]
[400369261,1767448032679,-697.47,0.00040995,30]
[400369262,1767448032701,-692.74,0.00040995,30]
[400369263,1767448032722,-694.64,0.00040995,30]
[400369264,1767448032751,-270.42886863,0.00040996,7]
[400369265,1767448032772,-46793.6154661,0.00040996,4]
[400369266,1767448032794,-2000.0,0.00041,120]
[400369267,1767448032816,-151.0,0.00041003,14]
[400369268,1767448032838,-408.56048182,0.00041005,31]
[400369269,1767448032861,-300.0,0.00041005,10]
[400369270,1767448032884,-207525.41533267,0.00041006,30]
[400369271,1767448038092,-151.0,0.00029689,2]
[400369272,1767448038118,-47126.26263049,0.00041006,30]
[400369273,1767448047136,-151.0,0.00031569,2]
[400369274,1767448047159,-3584.0,0.00041006,5]
[400369275,1767448047192,-24163.68098683,0.00041006,2]
[400369281,1767448151087,-506.0,0.00029877,2]
[400369284,1767448192911,81.97963879,0.00028278,2]
[400369285,1767448192934,69.02036121,0.00028278,2]
[400369291,1767448209929,151.0,0.0002828,2]
[400369293,1767448227382,151.0,0.00028396,2]
[400369298,1767448232152,-178.36,0.000345,30]
[400369299,1767448232162,-300.0,0.00038814,2]
[400369300,1767448232172,-300.0,0.00038814,2]
[400369305,1767448232421,-506.0,0.00039901,13]
[400369307,1767448232446,-228.74240001,0.00040255,7]
[400369308,1767448232456,-240.66,0.00040298,120]
[400369309,1767448232466,-101.7747051,0.000409,30]
[400369310,1767448232479,-854.9560859,0.000409,30]
[400369312,1767448232489,-2500.0,0.00040906,2]
[400369313,1767448232499,-688.85,0.00040997,30]
[400369314,1767448232509,-618.80442051,0.00041005,15]
[400369315,1767448232519,-300.0,0.00041005,5]
[400369317,1767448232529,-150.0,0.00041006,120]
[400369318,1767448232539,-7.81368749,0.00041006,30]
[400369319,1767448232556,-600.0,0.00041006,30]
[400369320,1767448232568,-91.18631251,0.00041006,30]
[400369321,1767448232578,-4409.25257239,0.00041006,2]
[400369322,1767448232744,-971427.06644078,0.00041006,2]
[400369323,1767448232754,-1352.6,0.0004104,30]
[400369324,1767448232764,-999.0,0.00041095,120]
[400369325,1767448232774,-600.0,0.00041096,120]
[400369326,1767448232784,-260.46127322,0.00041096,2]
[400369327,1767448232794,-711.84,0.00041098,30]
[400369328,1767448232803,-703.35,0.00041106,30]
[400369329,1767448232814,-816.11,0.00041205,30]
[400369330,1767448232824,-1104.12,0.00041205,30]
[400369331,1767448232834,-500.0,0.00041235,60]
[400369332,1767448232844,-500.0,0.00041235,60]
[400369333,1767448232854,-137869.03114721,0.00041284,30]
[400369334,1767448232866,-25.97200034,0.00041284,30]
[400369335,1767448232876,-2176.43251445,0.00041284,30]
[400369336,1767448232888,-2973.56683256,0.00041284,30]
[400369337,1767448232898,-1140.3031,0.00041293,3]
[400369338,1767448232908,-637.13006744,0.00041293,3]
[400369427,1767448238438,-1362.86993256,0.00041293,3]
[400369428,1767448238449,-1000.0,0.000413,2]
[400369429,1767448238462,-5000.0,0.000413,120]
[400369431,1767448238473,-257.55037606,0.000413,120]
[400369432,1767448238483,-808.97128005,0.00041335,2]
[400369433,1767448238494,-300.0,0.00041399,30]
[400369434,1767448238505,-551693.54316055,0.000414,120]
[400369436,1767448238548,-55275.77987368,0.000414,120]
[400369484,1767448240191,-22497.5,0.000414,120]
[400369490,1767448240475,-93672.51155301,0.000414,120]
[400369491,1767448240487,-37339.10368187,0.000414,120]
[400369492,1767448240499,-5645.99997239,0.000414,120]
[400369739,1767448243550,247.75,0.00013699,2]
[400369761,1767448243754,247.75,0.00020187,2]
[400369785,1767448243966,247.75,0.00026676,2]
[400369858,1767448244808,-247.75,0.00033165,2]
[400369859,1767448244819,-247.75,0.00039654,2]
[400369861,1767448244829,-29592.83575,0.000414,120]
[400369869,1767448244965,-204282.7260085,0.000414,120]
[400369871,1767448244975,-255555.0,0.000414,120]
[400369872,1767448244985,-300.0,0.00041435,30]
[400369874,1767448244995,-83400.3567303,0.00041436,2]
[400369876,1767448245005,-3425.494308,0.00041436,2]
[400369877,1767448245015,-181.9282088,0.00041436,2]
[400369879,1767448245024,-949.7453511,0.00041436,2]
[400369880,1767448245033,-200.0,0.00041438,120]
[400369882,1767448245043,-227.08441591,0.00041479,30]
[400369884,1767448245053,-150.0,0.00041479,30]
[400369885,1767448245063,-150.0,0.00041479,30]
[400369887,1767448245073,-150.0,0.00041479,30]
[400369888,1767448245082,-150.0,0.00041479,30]
[400369890,1767448245092,-150.4343184,0.00041479,30]
[400369891,1767448245102,-150.0,0.00041479,30]
[400369893,1767448245111,-150.0,0.00041479,30]
[400369895,1767448245121,-150.0,0.00041479,30]
[400369896,1767448245131,-150.0,0.00041479,30]
[400369898,1767448245140,-150.0,0.00041479,30]
[400369899,1767448245150,-150.37867968,0.00041479,30]
[400369901,1767448245161,-150.0,0.00041479,30]
[400369903,1767448245170,-150.0,0.00041479,30]
[400369904,1767448245180,-150.0,0.00041479,30]
[400369906,1767448245190,-178.77,0.00041479,30]
[400369907,1767448245199,-300.0,0.00041497,30]
[400369909,1767448245209,-250.0,0.00041498,30]
[400369911,1767448245219,-250.0,0.00041498,30]
[400369912,1767448245228,-343.5374829,0.00041498,30]
[400369914,1767448245238,-264.42317781,0.00041498,30]
[400369916,1767448245247,-250.0,0.00041498,30]
[400369917,1767448245260,-250.0,0.00041498,30]
[400369919,1767448245270,-250.0,0.00041498,30]
[400369920,1767448245280,-250.0,0.00041498,30]
[400369922,1767448245290,-250.0,0.00041498,30]
[400369924,1767448245303,-500.0,0.00041498,30]
[400369925,1767448245313,-250.0,0.00041498,30]
[400369927,1767448245323,-500.0,0.00041498,30]
[400369928,1767448245333,-500.0,0.00041498,30]
[400369930,1767448245342,-250.0,0.00041498,30]
[400369931,1767448245351,-500.0,0.00041498,30]
[400369933,1767448245361,-500.0,0.00041498,30]
[400369935,1767448245373,-250.0,0.00041498,30]
[400369936,1767448245383,-151.0,0.00041498,30]
[400369938,1767448245394,-500.0,0.00041498,30]
[400369939,1767448245403,-500.0,0.00041498,30]
[400369941,1767448245413,-250.0,0.00041498,30]
[400369943,1767448245422,-151.0,0.00041498,30]
[400369944,1767448245433,-500.0,0.00041498,30]
[400369946,1767448245444,-500.0,0.00041498,30]
[400369947,1767448245453,-151.0,0.00041498,30]
[400369949,1767448245463,-500.0,0.00041498,30]
[400369951,1767448245473,-500.0,0.00041498,30]
[400369952,1767448245484,-151.0,0.00041498,30]
[400369954,1767448245495,-500.0,0.00041498,30]
[400369956,1767448245505,-500.0,0.00041498,30]
[400369957,1767448245516,-151.0,0.00041498,30]
[400369959,1767448245526,-500.0,0.00041498,30]
[400369960,1767448245536,-500.0,0.00041498,30]
[400369962,1767448245546,-151.0,0.00041498,30]
[400369964,1767448245556,-500.0,0.00041498,30]
[400369966,1767448245567,-500.0,0.00041498,30]
[400369969,1767448245577,-6888.0,0.00041498,30]
[400369970,1767448245587,-151.0,0.00041498,30]
[400369971,1767448245597,-500.0,0.00041498,30]
[400369972,1767448245606,-151.0,0.00041498,30]
[400369973,1767448245616,-254.856,0.00041498,30]
[400369974,1767448245626,-151.0,0.00041498,30]
[400369975,1767448245635,-271.95027127,0.00041498,30]
[400369976,1767448245645,-151.0,0.00041498,30]
[400369977,1767448245655,-414.0,0.00041498,30]
[400369978,1767448245664,-429.318,0.00041498,30]
[400369979,1767448245674,-445.202766,0.00041498,30]
[400369980,1767448245683,-510.645413,0.00041498,30]
[400369981,1767448245693,-500.0,0.00041498,30]
[400369982,1767448245702,-500.0,0.00041498,30]
[400369983,1767448245712,-500.0,0.00041498,30]
[400369984,1767448245722,-500.0,0.00041498,30]
[400369985,1767448245732,-500.0,0.00041498,30]
[400369986,1767448245741,-500.0,0.00041498,30]
[400369987,1767448245751,-500.0,0.00041498,30]
[400369988,1767448245761,-500.0,0.00041498,30]
[400369989,1767448245770,-500.0,0.00041498,30]
[400369991,1767448245780,-800.0,0.000415,15]
[400369992,1767448245789,-800.0,0.000415,15]
[400369994,1767448245799,-800.0,0.000415,15]
[400369996,1767448245808,-800.0,0.000415,15]
[400369998,1767448245818,-800.0,0.000415,15]
[400370000,1767448245833,-800.0,0.000415,15]
[400370002,1767448245843,-800.0,0.000415,15]
[400370004,1767448245853,-211.65906912,0.000415,15]
[400370006,1767448245862,-800.0,0.000415,15]
[400370008,1767448245872,-800.0,0.000415,15]
[400370010,1767448245881,-800.0,0.000415,15]
[400370012,1767448245890,-800.0,0.000415,15]
[400370014,1767448245900,-800.0,0.000415,15]
[400370016,1767448245909,-800.0,0.000415,15]
[400370018,1767448245918,-800.0,0.000415,15]
[400370020,1767448245927,-800.0,0.000415,15]
[400370022,1767448245937,-308025.1298018,0.000415,2]
[400370024,1767448245947,-158.49,0.000415,14]
[400370027,1767448245957,-158.29,0.000415,14]
[400370029,1767448245966,-161.7,0.000415,14]
[400370031,1767448245976,-171.56,0.000415,30]
[400370033,1767448245986,-4030.85824384,0.000415,30]
[400370035,1767448245995,-150.0,0.000415,2]
[400370037,1767448246005,-881.70866492,0.000415,2]
[400370039,1767448246015,-11401.52905782,0.000415,120]
[400370041,1767448246025,-151.0,0.000415,14]
[400370043,1767448246035,-151.0,0.000415,14]
[400370045,1767448246045,-1259.0,0.000415,14]
[400370047,1767448246055,-151.0,0.000415,14]
[400370049,1767448246064,-1259.0,0.000415,14]
[400370051,1767448246074,-151.0,0.000415,14]
[400370053,1767448246083,-151.0,0.000415,14]
[400370055,1767448246093,-245.97854717,0.000415,14]
[400370057,1767448246102,-1259.0,0.000415,14]
[400370059,1767448246112,-1259.0,0.000415,14]
[400370061,1767448246121,-1259.0,0.000415,14]
[400370063,1767448246131,-1259.0,0.000415,14]
[400370065,1767448246140,-1259.0,0.000415,14]
[400370067,1767448246150,-153.0,0.000415,14]
[400370069,1767448246159,-153.0,0.000415,14]
[400370071,1767448246169,-153.0,0.000415,14]
[400370073,1767448246179,-153.0,0.000415,14]
[400370075,1767448246188,-1259.0,0.000415,14]
[400370077,1767448246198,-153.0,0.000415,14]
[400370079,1767448246208,-153.0,0.000415,14]
[400370082,1767448246219,-153.0,0.000415,14]
[400370084,1767448246229,-1259.0,0.000415,14]